fUSD/lending_fUSD_20240119
["ID","MTS","AMOUNT","RATE_DAILY","PERIOD"]
[312104517,1705629031881,-721.51,0.00021644,2]
[312104518,1705629031890,-737.12,0.00021644,2]
[312104519,1705629031900,-725.05,0.00021644,2]
[312104520,1705629031909,-735.83,0.00021644,2]
[312104521,1705629031918,-721.82,0.00021644,2]
[312104522,1705629031927,-724.43,0.00021644,2]
[312104523,1705629031936,-724.5,0.00021644,2]
[312104524,1705629031945,-717.89,0.00021644,2]
[312104525,1705629031954,-728.44,0.00021644,2]
[312104526,1705629031964,-727.11,0.00021644,2]
[312104527,1705629031973,-713.18,0.00021644,2]
[312104528,1705629031983,-720.65,0.00021644,2]
[312104529,1705629031992,-731.68,0.00021644,2]
[312104530,1705629032001,-710.54,0.00021644,2]
[312104531,1705629032011,-721.32,0.00021644,2]
[312104532,1705629032020,-715.05,0.00021644,2]
[312104533,1705629032029,-729.08,0.00021644,2]
[312104534,1705629032038,-717.43,0.00021644,2]
[312104535,1705629032047,-731.65,0.00021644,2]
[312104536,1705629032057,-720.83,0.00021645,2]
[312104537,1705629032066,-737.78,0.00021646,2]
[312104538,1705629032075,-718.08,0.00021648,2]
[312104539,1705629032085,-733.1,0.00021652,2]
[312104540,1705629032094,-299.99,0.00021652,7]
[312104541,1705629032103,-729.47,0.00021659,2]
[312104542,1705629032112,-727.44,0.00021673,2]
[312104544,1705629032122,-395.9027,0.000217,2]
[312104546,1705629032131,-906.6386,0.000217,2]
[312104548,1705629032140,-711.19,0.00021702,2]
[312104549,1705629032149,-723.24,0.00021756,2]
[312104550,1705629032158,-220.27,0.00021784,2]
[312104551,1705629032167,-7275.6405,0.00021792,2]
[312104552,1705629032176,-717.89,0.00021792,2]
[312104553,1705629032185,-8010.22326558,0.00021792,2]
[312104555,1705629032215,-3799.12138437,0.00021792,2]
[312104556,1705629032237,-3800.0,0.00021792,2]
[312104557,1705629032264,-474.01370317,0.00021792,2]
[312104571,1705629037796,-825.94,0.00021792,2]
[312104572,1705629037808,-1419.09778231,0.00021792,2]
[312104573,1705629038180,-1015.1999988,0.00021792,2]
[312105055,1705629042851,-703.06079523,0.00021792,2]
[312105068,1705629042962,-3056.81047984,0.00021792,2]
[312105070,1705629042974,-354.13932783,0.00021792,2]
[312105082,1705629043073,-308.0,0.00021792,2]
[312105224,1705629045955,-1510.54566232,0.00021792,2]
[312105225,1705629046140,-274.09910447,0.00021792,2]
[312105226,1705629046151,-1072.49571098,0.00021792,2]
[312105230,1705629048663,172.74,0.00021308,2]
[312105242,1705629172998,672.06,0.00020996,2]
[312105250,1705629186882,500.0,0.00021512,2]
[312105251,1705629187755,500.0,0.00021535,2]
[312105252,1705629187993,500.0,0.00021559,2]
[312105253,1705629188596,500.0,0.00021582,2]
[312105257,1705629258524,190.6,0.00021036,2]
[312105267,1705629327901,152.39,0.00020781,2]
[312105270,1705629388734,652.77,0.00020795,2]
[312105271,1705629414919,285.46,0.00018873,2]
[312105272,1705629415461,285.46,0.00021137,2]
[312105273,1705629506484,21334.5,0.00020787,2]
[312105274,1705629555510,150.09,0.00020997,2]
[312105276,1705629678804,462.35,0.00020789,2]
[312105277,1705629695397,523.92202884,0.00021599,2]
[312105278,1705629724351,205.0,0.00021161,2]
[312105279,1705629760780,151.0,0.00029847,120]
[312105280,1705629771796,250.0,0.00020789,2]
[312105281,1705629786059,500.0,0.00021528,2]
[312105282,1705629786335,205.00002,0.00021161,2]
[312105283,1705629786385,500.0,0.00021567,2]
[312105284,1705629793103,200.0,0.00020794,2]
[312105285,1705629826670,609.25,0.00020797,2]
[312105286,1705629876951,414.65,0.00020793,2]
[312105287,1705629911936,269.5,0.00020789,2]
[312105288,1705629941420,272.97,0.00018876,2]
[312105289,1705629941748,272.97,0.0002114,2]
[312105290,1705629981827,488.13402773,0.00021599,2]
[312105298,1705630156043,630.12,0.00020812,2]
[312105329,1705630232097,-766.07929493,0.000216,2]
[312105330,1705630232108,-6366.12705786,0.000216,2]
[312105331,1705630232118,-500.0,0.00021605,2]
[312105332,1705630232127,-726.58,0.00021612,2]
[312105333,1705630232137,-711.12,0.00021616,2]
[312105334,1705630232146,-150.0,0.00021626,2]
[312105335,1705630232155,-500.0,0.00021642,2]
[312105336,1705630232164,-541.97,0.00021644,2]
[312105337,1705630232174,-150.0,0.00021673,2]
[312105338,1705630232183,-500.0,0.00021679,2]
[312105339,1705630232193,-251.88,0.00021679,2]
[312105340,1705630232202,-1702.4243,0.00021692,2]
[312105341,1705630232211,-709.75,0.00021699,2]
[312105342,1705630232220,-737.1,0.000217,2]
[312105343,1705630232229,-713.12,0.000217,2]
[312105344,1705630232238,-725.81,0.000217,2]
[312105345,1705630232247,-713.99,0.000217,2]
[312105346,1705630232257,-500.0,0.00021716,2]
[312105347,1705630232266,-152.40503627,0.00021759,2]
[312105348,1705630232276,-150.0,0.00021764,2]
[312105349,1705630232285,-609.25,0.00021775,2]
[312105350,1705630232295,-150.09,0.00021787,2]
[312105351,1705630232304,-1127.99196564,0.0002179,3]
[312105352,1705630232313,-525.39458879,0.0002179,2]
[312105353,1705630232323,-490.74672491,0.0002179,2]
[312105354,1705630232333,-418.9919,0.0002179,2]
[312105355,1705630232343,-712.39,0.00021792,2]
[312105356,1705630232352,-82314.36141332,0.00021792,2]
[312105358,1705630232376,-428.50808,0.00021792,2]
[312105360,1705630232387,-17257.13050668,0.00021792,2]
[312105362,1705630232397,-1462.9387,0.00021792,2]
[312105364,1705630232406,-629.172,0.00021792,2]
[312105366,1705630232415,-1091.1704,0.00021792,2]
[312105369,1705630232427,-719.19,0.000218,2]
[312105372,1705630232436,-19133.17801413,0.000218,2]
[312105375,1705630232445,-156.98544574,0.00021805,2]
[312105378,1705630232455,-150.0,0.00021805,2]
[312105381,1705630232464,-211.70281332,0.00021818,2]
[312105383,1705630232474,-150.17,0.00021828,2]
[312105385,1705630232484,-150.0,0.0002184,2]
[312105387,1705630232493,-150.0,0.00021872,2]
[312105389,1705630232503,-625.22573924,0.0002188,3]
[312105391,1705630232516,-2194.40519846,0.0002188,3]
[312105393,1705630232526,-302.52929058,0.0002188,2]
[312105394,1705630232536,-178.77206168,0.00021882,2]
[312105395,1705630232546,-7734.60147899,0.0002189,2]
[312105396,1705630232555,-1728.79318288,0.0002189,2]
[312105397,1705630232565,-331.36355119,0.0002189,2]
[312105398,1705630232574,-155.30505426,0.0002189,2]
[312105399,1705630232583,-224.07978625,0.0002189,2]
[312105400,1705630232592,-157.72223363,0.0002189,2]
[312105401,1705630232601,-1318.99354547,0.0002189,2]
[312105402,1705630232611,-2527.17670552,0.00021891,2]
[312105411,1705630237968,-112.6383315,0.00021891,2]
[312105414,1705630237977,-3295.67153385,0.00021891,2]
[312105416,1705630237987,-376.56700672,0.00021891,5]
[312105418,1705630237997,-150.8477924,0.00021891,2]
[312105419,1705630238007,-500.0,0.00021891,2]
[312105421,1705630238017,-1985.15950242,0.00021892,2]
[312105424,1705630238029,-123.56792783,0.00021892,2]
[312105426,1705630238038,-723.36,0.00021892,2]
[312105428,1705630238048,-100.11325784,0.00021892,2]
[312105430,1705630238064,-29725.32969061,0.00021892,2]
[312105434,1705630238085,-2039.91657473,0.00021892,2]
[312105436,1705630238096,-594.46482529,0.00021892,2]
[312105438,1705630238107,-342.79972744,0.00021892,2]
[312105456,1705630238310,-12650.1003,0.00021892,2]
[312105457,1705630238322,-785.44914221,0.00021892,2]
[312105458,1705630238334,-356.95824751,0.00021892,2]
[312105459,1705630238346,-635.96349285,0.00021892,2]
[312105933,1705630243065,-612.06379247,0.00021892,2]
[312105935,1705630243077,-534.63279239,0.00021892,2]
[312106273,1705630246100,-1703.87830941,0.00021892,2]
[312107345,1705630312481,151.0,0.00029893,120]
[312107346,1705630340202,592.36,0.00020964,2]
[312107347,1705630355316,156.0,0.00020943,2]
[312107348,1705630356095,156.0,0.00021185,2]
[312107349,1705630356170,156.0,0.00021426,2]
[312107350,1705630361755,767.19917245,0.0002147,2]
[312107351,1705630389380,276.18,0.00019013,2]
[312107352,1705630389682,276.18,0.00021277,2]
[312107353,1705630444426,205.0,0.00020927,2]
[312107354,1705630445613,3223.26,0.00020921,2]
[312107355,1705630483303,1182.41,0.00020894,2]
[312107356,1705630573301,23900.0,0.00020836,2]
[312107357,1705630630514,152.86,0.00020989,2]
[312107358,1705630649036,495.9,0.00020777,2]
[312107359,1705630691458,168.2,0.00020926,2]
[312107360,1705630719106,560.76781231,0.00019393,2]
[312107361,1705630736917,563.73818692,0.0001948,2]
[312107362,1705630764212,250.0,0.00020759,2]
[312107363,1705630776069,151.0,0.00029693,120]
[312107364,1705630779009,293.85,0.00020759,2]
[312107365,1705630794465,584.08,0.00020756,2]
[312107366,1705630809858,152.05,0.00020754,2]
[312107367,1705630810087,152.05,0.00021014,2]
[312107368,1705630811023,152.05,0.00021273,2]
[312107369,1705630811101,152.05,0.00021533,2]
[312107370,1705630828374,151.40119,0.00021599,3]
[312107371,1705630830263,151.40119,0.00021599,3]
[312107372,1705630830989,151.40119,0.00021599,3]
[312107373,1705630832289,151.40119,0.00021599,3]
[312107374,1705630832356,151.40119,0.00021599,3]
[312107375,1705630832963,151.40119,0.00021599,3]
[312107376,1705630833586,151.40119,0.00021599,3]
[312107377,1705630834401,151.40119,0.00021599,3]
[312107378,1705630834855,151.40119,0.00021599,3]
[312107379,1705630835560,151.40119,0.00021599,3]
[312107380,1705630836219,151.40119,0.00021599,3]
[312107381,1705630836797,151.40119,0.00021599,3]
[312107382,1705630837510,151.40119,0.00021599,3]
[312107383,1705630838143,151.40119,0.00021599,3]
[312107384,1705630838835,151.40119,0.00021599,3]
[312107385,1705630839416,151.40119,0.00021599,3]
[312107386,1705630840100,151.40119,0.00021599,3]
[312107387,1705630879651,248.56,0.00018829,2]
[312107388,1705630880030,248.56,0.00021093,2]
[312107389,1705630930714,186.7858539,0.00021518,2]
[312107390,1705630931253,2000.0,0.00020738,2]
[312107391,1705630999796,438662.069444,0.00021,2]
[312107392,1705631021465,392.0,0.00021267,2]
[312107393,1705631035446,150.0,0.00021267,2]
[312107394,1705631049583,299.44,0.00020733,2]
[312107395,1705631066200,500.0,0.00020732,2]
[312107396,1705631079836,151.0,0.00029828,120]
[312107397,1705631089227,4551.1387,0.00021525,2]
[312107398,1705631117862,603.28,0.00020733,2]
[312107399,1705631122933,985.27575952,0.0002054,2]
[312107400,1705631126705,161.17,0.00020888,2]
[312107401,1705631130219,863.49563821,0.00020733,2]
[312107402,1705631130819,1168.45,0.00020901,2]
[312107403,1705631133256,208.43268094,0.00020733,2]
[312107404,1705631135320,151.40119,0.00021599,3]
[312107405,1705631138257,151.40119,0.00021599,3]
[312107406,1705631139049,151.40119,0.00021599,3]
[312107407,1705631139244,2705.0,0.00020733,2]
[312107408,1705631139684,151.40119,0.00021599,3]
[312107409,1705631140279,151.40119,0.00021599,3]
[312107410,1705631140873,151.40119,0.00021599,3]
[312107411,1705631141421,151.40119,0.00021599,3]
[312107412,1705631142014,151.40119,0.00021599,3]
[312107413,1705631142590,151.40119,0.00021599,3]
[312107414,1705631143131,151.40119,0.00021599,3]
[312107415,1705631143783,151.40119,0.00021599,3]
[312107416,1705631144316,151.40119,0.00021599,3]
[312107417,1705631144824,151.40119,0.00021599,3]
[312107418,1705631145486,151.40119,0.00021599,3]
[312107419,1705631145967,151.40119,0.00021599,3]
[312107420,1705631146584,151.40119,0.00021599,3]
[312107421,1705631147177,151.40119,0.00021599,3]
[312107422,1705631147752,151.40119,0.00021599,3]
[312107423,1705631148323,151.40119,0.00021599,3]
[312107424,1705631148351,160.96124887,0.00020733,2]
[312107425,1705631149312,151.40119,0.00021599,3]
[312107426,1705631149489,151.40119,0.00021599,3]
[312107427,1705631150076,151.40119,0.00021599,3]
[312107428,1705631150213,856.54723122,0.00020733,2]
[312107429,1705631150731,151.40119,0.00021599,3]
[312107430,1705631156050,376.96687683,0.00020733,2]
[312107431,1705631164196,206.0,0.00020703,2]
[312107432,1705631169521,974.58331675,0.00020733,2]
[312107433,1705631172937,156.69048524,0.00020733,2]
[312107434,1705631187451,169.58,0.00020733,2]
[312107435,1705631201206,165.15,0.00020941,2]
[312107436,1705631218827,621.95553919,0.00020756,2]
[312107437,1705631227826,250.0,0.00020735,2]
[312107447,1705631246417,576.4,0.00020729,2]
[312107448,1705631253722,500.0,0.0002073,2]
[312107449,1705631284652,204.99998,0.00020703,2]
[312107450,1705631285580,500.0,0.00021581,2]
[312107451,1705631337169,175.64,0.00020727,2]
[312107452,1705631363487,200.0,0.00020727,2]
[312107453,1705631386213,170.99184561,0.00021515,2]
[312107454,1705631388206,2000.0,0.00020727,2]
[312107455,1705631400474,155.0,0.00021599,2]
[312107456,1705631410957,585.24580243,0.0002054,2]
[312107457,1705631414110,352.36170306,0.00020727,2]
[312107458,1705631416336,162.3082157,0.00019459,2]
[312107459,1705631416723,255.55072882,0.00020727,2]
[312107460,1705631430042,186.0,0.00021599,2]
[312107461,1705631431182,238.87,0.00018815,2]
[312107462,1705631431509,238.87,0.00021079,2]
[312107469,1705631432200,-6439.8794207,0.00021614,2]
[312107470,1705631432210,-710.62,0.00021615,2]
[312107471,1705631432219,-726.52,0.00021616,2]
[312107472,1705631432228,-718.7,0.00021616,2]
[312107473,1705631432240,-150.0,0.00021617,2]
[312107474,1705631432250,-728.78,0.00021618,2]
[312107475,1705631432259,-714.07,0.00021619,2]
[312107476,1705631432268,-720.24,0.0002162,2]
[312107477,1705631432278,-3769.56,0.0002162,2]
[312107478,1705631432287,-730.8,0.0002162,2]
[312107479,1705631432296,-247.55460457,0.00021621,2]
[312107480,1705631432306,-523.73846155,0.00021621,2]
[312107481,1705631432316,-162.48711331,0.00021621,2]
[312107482,1705631432324,-737.67,0.00021621,2]
[312107483,1705631432333,-709.55,0.00021622,2]
[312107484,1705631432342,-19177.69849422,0.00021623,2]
[312107485,1705631432370,-560.92792092,0.00021623,2]
[312107486,1705631432381,-1824.22785908,0.00021623,2]
[312107487,1705631432413,-6275.32553935,0.00021623,2]
[312107488,1705631432424,-250.19404164,0.00021623,2]
[312107489,1705631433963,204.00002,0.00020703,2]
[312107505,1705631438151,-582.13731654,0.00021613,2]
[312107506,1705631438161,-11700.66963363,0.00021623,2]
[312107507,1705631438268,-251.12547234,0.00021623,2]
[312107508,1705631438281,-23284.67851938,0.00021623,2]
[312107509,1705631438290,-737.99,0.00021623,2]
[312107510,1705631438300,-733.85,0.00021624,2]
[312107511,1705631438309,-718.71,0.00021624,2]
[312107512,1705631438318,-499.99,0.00021625,2]
[312107513,1705631438329,-721.08,0.00021625,2]
[312107514,1705631438338,-711.16,0.00021626,2]
[312107515,1705631438348,-710.1,0.00021634,2]
[312107516,1705631438357,-722.87,0.00021635,2]
[312107517,1705631438366,-9999.99,0.00021635,2]
[312107518,1705631438376,-713.88,0.00021635,2]
[312107519,1705631438385,-734.29,0.00021637,2]
[312107520,1705631438394,-715.17,0.00021638,2]
[312107521,1705631438404,-729.87,0.00021639,2]
[312107522,1705631438414,-718.2,0.00021641,2]
[312107523,1705631438424,-733.06,0.00021641,2]
[312107524,1705631438433,-715.5,0.00021643,2]
[312107525,1705631438443,-735.98,0.00021643,2]
[312107526,1705631438452,-433.57,0.00021644,2]
[312107527,1705631438462,-150.0,0.00021652,2]
[312107528,1705631438472,-150.0,0.00021654,2]
[312107529,1705631438481,-156.0,0.00021668,2]
[312107530,1705631438490,-150.0,0.00021669,2]
[312107531,1705631438499,-150.0,0.00021692,2]
[312107532,1705631438509,-150.0,0.00021692,2]
[312107533,1705631438519,-150.0,0.00021704,2]
[312107534,1705631438540,-576.4,0.00021708,2]
[312107535,1705631438550,-150.0,0.00021709,2]
[312107536,1705631438560,-150.0,0.0002172,2]
[312107538,1705631438569,-150.0,0.0002172,2]
[312107540,1705631438579,-150.0,0.00021732,2]
[312107542,1705631438589,-500.0,0.00021751,2]
[312107544,1705631438598,-150.0,0.00021765,2]
[312107546,1705631438608,-150.0,0.00021771,2]
[312107548,1705631438617,-150.0,0.00021775,2]
[312107550,1705631438627,-736.42130802,0.00021783,2]
[312107551,1705631438636,-1020.08645186,0.00021792,3]
[312107552,1705631438647,-4384.693,0.00021792,2]
[312107554,1705631438657,-645.327,0.00021792,2]
[312107556,1705631438666,-12098.64260685,0.00021792,2]
[312107558,1705631438680,-1005.57824278,0.00021792,2]
[312107568,1705631438770,-1695.7537696,0.00021792,2]
[312107571,1705631438791,-5536.46326453,0.00021792,2]
[312107902,1705631443976,-246.65556491,0.00021791,2]
[312107903,1705631443988,-3371.83128885,0.00021792,2]
[312107931,1705631446264,-1350.8526661,0.00021792,2]
[312107932,1705631446325,-16.04666129,0.00021792,2]
[312107933,1705631446335,-722.48,0.00021792,2]
[312107934,1705631446344,-674.10929338,0.00021792,2]
[312107935,1705631446440,-406.30884837,0.00021792,2]
[312107959,1705631450414,204.43,0.0002137,2]
[312107960,1705631485180,414.61,0.00020934,2]
[312107961,1705631511498,200.0,0.00020919,2]
[312107962,1705631524872,206.0,0.00021574,2]
[312107963,1705631624835,1350.33558256,0.00021384,2]
[312107964,1705631647808,151.0,0.00029831,120]
[312107965,1705631678135,161.17,0.00021021,2]
[312107966,1705631678194,161.17,0.00021568,2]
[312107967,1705631684951,153.24,0.00021073,2]
[312107968,1705631690179,517.37,0.00020862,2]
[312107969,1705631746930,160.46250674,0.00021516,2]
[312107970,1705631775724,499.54,0.00020827,2]
[312107971,1705631779098,56895.41095111,0.00020423,2]
[312107972,1705631779508,151.40119,0.00021599,3]
[312107973,1705631780576,151.40119,0.00021599,3]
[312107974,1705631781283,151.40119,0.00021599,3]
[312107975,1705631781925,419.0,0.0003,120]
[312107976,1705631782128,151.40119,0.00021599,3]
[312107977,1705631782626,151.40119,0.00021599,3]
[312107978,1705631783430,151.40119,0.00021599,3]
[312107979,1705631783946,151.40119,0.00021599,3]
[312107980,1705631784695,151.40119,0.00021599,3]
[312107981,1705631785333,151.40119,0.00021599,3]
[312107982,1705631807344,151.40119,0.00021599,3]
[312107983,1705631808038,151.40119,0.00021599,3]
[312107984,1705631808444,151.40119,0.00021599,3]
[312107985,1705631809007,151.40119,0.00021599,3]
[312107986,1705631809341,151.40119,0.00021599,3]
[312107987,1705631809966,151.40119,0.00021599,3]
[312107988,1705631810027,151.40119,0.00021599,3]
[312107989,1705631810295,151.40119,0.00021599,3]
[312107990,1705631810635,151.40119,0.00021599,3]
[312107991,1705631810961,151.40119,0.00021599,3]
[312107992,1705631811553,151.40119,0.00021599,3]
[312107993,1705631811949,151.40119,0.00021599,3]
[312107994,1705631812221,151.40119,0.00021599,3]
[312107995,1705631812581,151.40119,0.00021599,3]
[312107996,1705631813010,151.40119,0.00021599,3]
[312107997,1705631813223,151.40119,0.00021599,3]
[312107998,1705631842723,386.08,0.00020822,2]
[312107999,1705631899329,164.09,0.00020816,2]
[312108002,1705631958586,231.36,0.00018897,2]
[312108003,1705631958913,231.36,0.00021161,2]
[312108004,1705632012438,500.0,0.00020813,2]
[312108009,1705632139832,3191.26397536,0.00021014,2]
[312108010,1705632155338,6073.94,0.00020803,2]
[312108011,1705632181733,6439.8794207,0.00021599,2]
[312108012,1705632192159,586.1,0.0002081,2]
[312108013,1705632208907,501.4,0.00020811,2]
[312108014,1705632212402,160.86393961,0.00021516,2]
[312108015,1705632219142,151.0,0.00029965,120]
[312108016,1705632243970,206.0,0.00021495,2]
[312108017,1705632366718,204.99998,0.00021495,2]
[312108018,1705632382936,160.32,0.00020813,2]
[312108020,1705632463607,184.26338518,0.00021554,2]
[312108021,1705632486438,225.46,0.00018893,2]
[312108022,1705632486789,225.46,0.00021157,2]
[312108023,1705632517837,389.61,0.00020807,2]
[312108026,1705632549866,3191.26397536,0.00021014,2]
[312108029,1705632596388,500.0,0.00020819,2]
[312108032,1705632631607,152.86,0.00021017,2]
[312108055,1705632632371,-155.0,0.00021601,2]
[312108056,1705632632381,-2139.90801857,0.00021602,2]
[312108057,1705632632390,-168.10605117,0.00021603,2]
[312108058,1705632632400,-168.10605117,0.00021603,2]
[312108059,1705632632410,-242.16867299,0.00021615,2]
[312108060,1705632632619,-489.47132701,0.00021615,2]
[312108061,1705632632629,-734.54,0.00021616,2]
[312108062,1705632632638,-727.77,0.00021617,2]
[312108063,1705632632648,-713.6,0.00021617,2]
[312108064,1705632632658,-718.18,0.00021618,2]
[312108066,1705632632667,-617.67,0.00021619,2]
[312108068,1705632632676,-721.68,0.00021619,2]
[312108070,1705632632685,-300.0,0.00021619,2]
[312108072,1705632632695,-150.0,0.00021619,2]
[312108075,1705632632704,-687.34,0.00021619,2]
[312108077,1705632632713,-711.86,0.0002162,2]
[312108078,1705632632723,-1562.59230481,0.0002162,2]
[312108122,1705632638367,-2628.40293974,0.0002162,2]
[312108123,1705632638379,-843.85681644,0.0002162,2]
[312108124,1705632638425,-411.27092537,0.0002162,2]
[312108125,1705632638438,-4553.86701364,0.0002162,2]
[312108126,1705632638447,-6412.27195766,0.0002162,2]
[312108127,1705632638458,-540.77804234,0.0002162,2]
[312108128,1705632638468,-714.66,0.00021621,2]
[312108129,1705632638477,-725.1,0.00021621,2]
[312108130,1705632638486,-908.34824563,0.00021621,2]
[312108131,1705632638980,-2443.76605214,0.00021621,2]
[312108132,1705632638990,-725.75,0.00021622,2]
[312108133,1705632639001,-346.85,0.00021644,2]
[312108134,1705632639013,-150.0,0.0002168,2]
[312108135,1705632639024,-1148.92169282,0.00021789,3]
[312108136,1705632639034,-501.4,0.00021789,2]
[312108137,1705632639043,-2092.26089452,0.00021791,2]
[312108138,1705632639057,-326.30865183,0.00021791,2]
[312108139,1705632639068,-51.13683294,0.00021792,2]
[312108305,1705632640793,-673.50316706,0.00021792,2]
[312108308,1705632640802,-542.98969615,0.00021792,2]
[312108431,1705632641948,-172.45030385,0.00021792,2]
[312108433,1705632641958,-168.19159964,0.00021792,2]
[312108437,1705632641986,-353.65999998,0.00021792,2]
[312108579,1705632643370,-31.68610038,0.00021792,2]
[312108581,1705632643379,-152.05,0.00021792,2]
[312108583,1705632643388,-124.73786902,0.000218,2]
[312108585,1705632643399,-583.27845984,0.000218,2]
[312108590,1705632643434,-556.75828576,0.000218,2]
[312108592,1705632643444,-886.32444843,0.000218,2]
[312108594,1705632643456,-271.83505795,0.000218,2]
[312108596,1705632643467,-1101.317464,0.000218,2]
[312108598,1705632643479,-1559.4888852,0.000218,2]
[312108601,1705632643490,-5235.26607686,0.000218,2]
[312108604,1705632643514,-2337.46069765,0.000218,2]
[312108607,1705632643529,-1094.71641432,0.000218,2]
[312108609,1705632643540,-401.24529121,0.000218,2]
[312108616,1705632643596,-1371.19618759,0.000218,2]
[312108629,1705632643706,-344.90893925,0.000218,2]
[312108631,1705632643717,-554.00000005,0.000218,2]
[312108633,1705632643728,-347.18442988,0.000218,2]
[312108912,1705632646386,-994.55659917,0.000218,2]
[312108931,1705632646617,-1368.90290795,0.000218,2]
[312108933,1705632646626,-150.81198338,0.0002184,2]
[312108935,1705632646635,-153.24,0.00021866,2]
[312108937,1705632646645,-719.28,0.00021889,2]
[312108939,1705632646654,-717.47,0.0002189,2]
[312108941,1705632646663,-233.68493522,0.0002189,2]
[312108943,1705632646672,-155.5869308,0.0002189,2]
[312108945,1705632646680,-312.58239403,0.0002189,2]
[312108947,1705632646690,-208.36088095,0.0002189,2]
[312108949,1705632646700,-212.46490832,0.0002189,2]
[312108951,1705632646708,-1858.44355784,0.0002189,2]
[312108953,1705632646720,-3535.17320988,0.0002189,2]
[312108955,1705632646729,-671.05687677,0.0002189,2]
[312108957,1705632646738,-702.57987101,0.0002189,2]
[312108959,1705632646748,-546.70411547,0.0002189,2]
[312108961,1705632646757,-1727.29778266,0.0002189,2]
[312108963,1705632646768,-1646.94202387,0.0002189,2]
[312108966,1705632646783,-614.175,0.0002189,2]
[312109190,1705632665876,788.49656866,0.00021014,2]
[312109191,1705632685276,162.81,0.00021192,2]
[312109192,1705632690660,531.12,0.00021031,2]
[312109194,1705632716022,1527.3390751,0.0002,2]
[312109196,1705632732007,1527.3390751,0.0002,2]
[312109198,1705632737029,469.2,0.0002095,2]
[312109199,1705632750004,236.25868682,0.0002,2]
[312109200,1705632752261,897.66779128,0.00021475,2]
[312109202,1705632795716,166.42,0.00020929,2]
[312109205,1705632844494,167.14,0.00020915,2]
[312109206,1705632844912,167.14,0.0002108,2]
[312109207,1705632845322,167.14,0.00021245,2]
[312109208,1705632845784,167.14,0.0002141,2]
[312109209,1705632845955,167.14,0.00021575,2]
[312109212,1705632968149,220.99,0.00018972,2]
[312109213,1705632968472,220.99,0.00021236,2]
[312109214,1705633003121,323.62,0.00020878,2]
[312109215,1705633125504,165.15,0.00021046,2]
[312109216,1705633127275,162.81,0.00020994,2]
[312109217,1705633131551,575.1,0.00020837,2]
[312109219,1705633157699,160.8639396,0.00021545,2]
[312109220,1705633232214,2000.0,0.00020783,2]
[312109221,1705633277038,154.29,0.00020773,2]
[312109222,1705633376910,471.54,0.00020775,2]
[312109223,1705633408537,215.99,0.00018856,2]
[312109224,1705633408932,215.99,0.0002112,2]
[312109225,1705633438037,151.40119,0.00021599,3]
[312109226,1705633438752,151.40119,0.00021599,3]
[312109227,1705633439443,151.40119,0.00021599,3]
[312109228,1705633439921,151.40119,0.00021599,3]
[312109229,1705633440342,151.40119,0.00021599,3]